[Event "Kvibergspelen 2018"]
[Site "Prioritet Serneke Arena, Krutvagen 2, Gothenburg, Sweden"]
[Date "2018.04.21"]
[Round "3.7"]
[White "Seo, Jung Min"]
[Black "Strom, Leif"]
[Result "1/2-1/2"]
[TimeControl "15 minutes + 5 seconds per move from move one (Round 1 - 4) / 90 minutes + 30 seconds per move from move one (Round 5 - 8)"]
[WhiteTitle "FM"]
[WhiteFideId "1734687"]
[BlackFideId "1709410"]
[WhiteElo "2349"]
[BlackElo "2111"]

1. e4 {[%clk 00:15:09]} {[%emt 00:03:43]} e5 {[%clk 00:15:09]} {[%emt
00:00:02]} 2. Nf3 {[%clk 00:15:13]} {[%emt 00:00:02]} f5 {[%clk 00:15:14]} 3.
d4 {[%clk 00:14:39]} {[%emt 00:00:38]} fxe4 {[%clk 00:15:17]} {[%emt 00:00:02]}
4. Nxe5 {[%clk 00:14:43]} Nf6 {[%clk 00:15:20]} {[%emt 00:00:02]} 5. Be2 {[%clk
00:14:33]} {[%emt 00:00:14]} d6 {[%clk 00:15:18]} {[%emt 00:00:07]} 6. Nc4
{[%clk 00:14:38]} Be7 {[%clk 00:15:16]} {[%emt 00:00:07]} 7. O-O {[%clk
00:14:37]} {[%emt 00:00:06]} O-O {[%clk 00:15:20]} {[%emt 00:00:01]} 8. Nc3
{[%clk 00:14:41]} {[%emt 00:00:01]} d5 {[%clk 00:15:12]} {[%emt 00:00:13]} 9.
Ne5 {[%clk 00:14:44]} {[%emt 00:00:02]} c6 {[%clk 00:15:09]} {[%emt 00:00:08]}
10. f3 {[%clk 00:14:44]} {[%emt 00:00:05]} Bb4 {[%clk 00:13:36]} {[%emt
00:01:39]} 11. Bg5 {[%clk 00:14:21]} {[%emt 00:00:27]} Bxc3 {[%clk 00:13:07]}
{[%emt 00:00:34]} 12. bxc3 {[%clk 00:14:25]} {[%emt 00:00:01]} exf3 {[%clk
00:11:49]} {[%emt 00:01:23]} 13. Bxf3 {[%clk 00:14:24]} {[%emt 00:00:05]} Nbd7
{[%clk 00:11:50]} {[%emt 00:00:04]} 14. c4 {[%clk 00:14:24]} {[%emt 00:00:05]}
Nxe5 {[%clk 00:10:08]} {[%emt 00:01:47]} 15. dxe5 {[%clk 00:14:28]} {[%emt
00:00:01]} Qb6+ {[%clk 00:10:13]} 16. Kh1 {[%clk 00:14:27]} {[%emt 00:00:06]}
Ne4 {[%clk 00:09:59]} {[%emt 00:00:19]} 17. Bxe4 {[%clk 00:14:08]} {[%emt
00:00:24]} Rxf1 {[%clk 00:09:55]} {[%emt 00:00:10]} 18. Qxf1 {[%clk 00:14:11]}
{[%emt 00:00:01]} dxe4 {[%clk 00:09:58]} {[%emt 00:00:02]} 19. Qe2 {[%clk
00:13:18]} {[%emt 00:00:58]} Bf5 {[%clk 00:08:49]} {[%emt 00:01:14]} 20. Rf1
{[%clk 00:13:19]} {[%emt 00:00:04]} Rf8 {[%clk 00:08:25]} {[%emt 00:00:29]} 21.
Be7 {[%clk 00:12:27]} {[%emt 00:00:57]} Rf7 {[%clk 00:08:22]} {[%emt 00:00:08]}
22. Bd6 {[%clk 00:12:21]} {[%emt 00:00:11]} Qd4 {[%clk 00:07:06]} {[%emt
00:01:22]} 23. Rd1 {[%clk 00:12:03]} {[%emt 00:00:20]} Qc3 {[%clk 00:07:04]}
{[%emt 00:00:09]} 24. h3 {[%clk 00:11:19]} {[%emt 00:00:49]} h6 {[%clk
00:07:04]} {[%emt 00:00:04]} 25. Kh2 {[%clk 00:11:20]} {[%emt 00:00:03]} Be6
{[%clk 00:06:18]} {[%emt 00:00:51]} 26. Qxe4 {[%clk 00:11:02]} {[%emt
00:00:24]} Qxc4 {[%clk 00:06:18]} {[%emt 00:00:05]} 27. Qxc4 {[%clk 00:08:31]}
{[%emt 00:02:36]} Bxc4 {[%clk 00:06:22]} {[%emt 00:00:01]} 28. Re1 {[%clk
00:08:32]} {[%emt 00:00:03]} Be6 {[%clk 00:06:25]} {[%emt 00:00:02]} 29. Kg3
{[%clk 00:08:35]} {[%emt 00:00:03]} Rf5 {[%clk 00:05:42]} {[%emt 00:00:49]} 30.
a4 {[%clk 00:08:21]} {[%emt 00:00:19]} Kf7 {[%clk 00:05:28]} {[%emt 00:00:19]}
31. a5 {[%clk 00:08:17]} {[%emt 00:00:09]} b6 {[%clk 00:05:03]} {[%emt
00:00:30]} 32. a6 {[%clk 00:07:50]} {[%emt 00:00:32]} Bc4 {[%clk 00:04:33]}
{[%emt 00:00:35]} 33. Ra1 {[%clk 00:07:53]} {[%emt 00:00:02]} Ke6 {[%clk
00:04:37]} {[%emt 00:00:01]} 34. Rb1 {[%clk 00:07:18]} {[%emt 00:00:40]} Bxa6
{[%clk 00:04:24]} {[%emt 00:00:18]} 35. Ra1 {[%clk 00:07:23]} Bf1 {[%clk
00:04:07]} {[%emt 00:00:22]} 36. Rxa7 {[%clk 00:07:20]} {[%emt 00:00:09]} Rg5+
{[%clk 00:04:11]} {[%emt 00:00:01]} 37. Kf2 {[%clk 00:07:11]} {[%emt 00:00:13]}
Bxg2 {[%clk 00:04:14]} {[%emt 00:00:02]} 38. h4 {[%clk 00:07:13]} {[%emt
00:00:02]} Rg6 {[%clk 00:04:18]} {[%emt 00:00:02]} 39. c4 {[%clk 00:06:08]}
{[%emt 00:01:11]} b5 {[%clk 00:03:29]} {[%emt 00:00:53]} 40. Re7+ {[%clk
00:06:09]} {[%emt 00:00:03]} Kf5 {[%clk 00:03:34]} 41. Rf7+ {[%clk 00:05:55]}
{[%emt 00:00:19]} Ke6 {[%clk 00:03:26]} {[%emt 00:00:12]} 42. Re7+ {[%clk
00:05:58]} {[%emt 00:00:02]} Kf5 {[%clk 00:03:31]} 43. Rf7+ {[%clk 00:05:22]}
{[%emt 00:00:42]} Ke6 {[%clk 00:03:35]} 44. Re7+ {[%emt 00:00:01]} Kf5 1/2-1/2

[Event "Kvibergspelen 2018"]
[Site "Prioritet Serneke Arena, Krutvagen 2, Gothenburg, Sweden"]
[Date "2018.04.21"]
[Round "3.8"]
[White "Al Waeli, Laith"]
[Black "Pantzar, Milton"]
[Result "0-1"]
[TimeControl "15 minutes + 5 seconds per move from move one (Round 1 - 4) / 90 minutes + 30 seconds per move from move one (Round 5 - 8)"]
[WhiteTitle "FM"]
[BlackTitle "FM"]
[WhiteFideId "4801059"]
[BlackFideId "1721003"]
[WhiteElo "2109"]
[BlackElo "2295"]

1. Nf3 {[%clk 00:15:07]} {[%emt 00:00:02]} b6 {[%clk 00:15:04]} {[%emt
00:00:07]} 2. g3 {[%clk 00:15:07]} {[%emt 00:00:05]} Bb7 {[%clk 00:15:06]}
{[%emt 00:00:03]} 3. d4 {[%clk 00:14:57]} {[%emt 00:00:15]} Nf6 {[%clk
00:14:23]} {[%emt 00:00:49]} 4. Bg2 {[%clk 00:14:59]} {[%emt 00:00:01]} g6
{[%clk 00:14:25]} {[%emt 00:00:04]} 5. O-O {[%clk 00:14:17]} {[%emt 00:00:47]}
Bg7 {[%clk 00:14:24]} {[%emt 00:00:07]} 6. c4 {[%clk 00:14:12]} {[%emt
00:00:09]} e6 {[%clk 00:14:12]} {[%emt 00:00:19]} 7. Nc3 {[%clk 00:13:14]}
{[%emt 00:01:01]} O-O {[%clk 00:14:14]} {[%emt 00:00:04]} 8. d5 {[%clk
00:11:09]} {[%emt 00:02:10]} exd5 {[%clk 00:11:43]} {[%emt 00:02:36]} 9. cxd5
{[%clk 00:10:58]} {[%emt 00:00:15]} Re8 {[%clk 00:11:31]} {[%emt 00:00:18]} 10.
Nd4 {[%clk 00:10:10]} {[%emt 00:00:52]} c5 {[%clk 00:09:49]} {[%emt 00:01:47]}
11. dxc6 {[%clk 00:09:06]} {[%emt 00:01:09]} dxc6 {[%clk 00:09:48]} {[%emt
00:00:06]} 12. Ndb5 {[%clk 00:08:03]} {[%emt 00:01:08]} Qe7 {[%clk 00:09:07]}
{[%emt 00:00:46]} 13. Na3 {[%clk 00:05:44]} {[%emt 00:02:24]} Na6 {[%clk
00:07:29]} {[%emt 00:01:43]} 14. Qa4 {[%clk 00:04:01]} {[%emt 00:01:48]} Nc5
{[%clk 00:06:51]} {[%emt 00:00:43]} 15. Qh4 {[%clk 00:04:00]} {[%emt 00:00:05]}
Nfe4 {[%clk 00:05:21]} {[%emt 00:01:35]} 16. Nxe4 {[%clk 00:03:10]} {[%emt
00:00:54]} Qxh4 {[%clk 00:04:48]} {[%emt 00:00:39]} 17. gxh4 {[%clk 00:03:13]}
{[%emt 00:00:01]} Nxe4 {[%clk 00:04:52]} 18. Nc4 {[%clk 00:03:03]} {[%emt
00:00:17]} Ba6 {[%clk 00:04:28]} {[%emt 00:00:30]} 19. Nd2 {[%clk 00:02:12]}
{[%emt 00:00:55]} Nxd2 {[%clk 00:04:04]} {[%emt 00:00:29]} 20. Bxd2 {[%clk
00:02:15]} {[%emt 00:00:01]} Rxe2 {[%clk 00:02:54]} {[%emt 00:01:16]} 21. Rfd1
{[%clk 00:01:22]} {[%emt 00:00:58]} Bxb2 {[%clk 00:02:13]} {[%emt 00:00:46]} 22.
Rab1 {[%clk 00:01:04]} {[%emt 00:00:23]} Bd4 {[%clk 00:02:10]} {[%emt
00:00:08]} 23. Be1 {[%clk 00:01:05]} {[%emt 00:00:04]} Bc5 {[%clk 00:01:39]}
{[%emt 00:00:36]} 24. Bf1 {[%clk 00:01:09]} {[%emt 00:00:02]} Rxa2 {[%clk
00:01:37]} {[%emt 00:00:07]} 25. Bg2 {[%clk 00:00:48]} {[%emt 00:00:26]} Rc8
{[%clk 00:00:44]} {[%emt 00:00:59]} 26. h5 {[%clk 00:00:29]} {[%emt 00:00:24]}
gxh5 {[%clk 00:00:41]} {[%emt 00:00:08]} 27. Bh3 {[%clk 00:00:23]} {[%emt
00:00:11]} Re8 {[%clk 00:00:43]} {[%emt 00:00:02]} 28. Ra1 {[%clk 00:00:11]}
{[%emt 00:00:17]} Bc4 {[%clk 00:00:19]} {[%emt 00:00:29]} 29. Rxa2 {[%clk
00:00:10]} {[%emt 00:00:05]} Bxa2 {[%clk 00:00:23]} {[%emt 00:00:01]} 30. Kg2
{[%clk 00:00:11]} {[%emt 00:00:04]} Bd5+ {[%clk 00:00:27]} 31. f3 {[%clk
00:00:14]} {[%emt 00:00:02]} Re2+ {[%clk 00:00:30]} {[%emt 00:00:02]} 32. Kf1
{[%clk 00:00:08]} {[%emt 00:00:11]} Rxh2 {[%clk 00:00:32]} {[%emt 00:00:02]} 33.
Bg2 {[%clk 00:00:11]} {[%emt 00:00:03]} Bc4+ {[%clk 00:00:35]} {[%emt
00:00:02]} 0-1

[Event "Kvibergspelen 2018"]
[Site "Prioritet Serneke Arena, Krutvagen 2, Gothenburg, Sweden"]
[Date "2018.04.21"]
[Round "3.9"]
[White "Eriksson, Lennarth"]
[Black "Sorensen, Hampus"]
[Result "0-1"]
[TimeControl "15 minutes + 5 seconds per move from move one (Round 1 - 4) / 90 minutes + 30 seconds per move from move one (Round 5 - 8)"]
[WhiteFideId "1707736"]
[BlackFideId "8703884"]
[WhiteElo "2098"]
[BlackElo "2243"]

1. Nf3 {[%clk 00:15:07]} {[%emt 00:00:02]} d5 {[%clk 00:15:07]} {[%emt
00:00:03]} 2. c4 {[%clk 00:15:10]} {[%emt 00:00:02]} c6 {[%clk 00:15:10]}
{[%emt 00:00:01]} 3. b3 {[%clk 00:15:14]} {[%emt 00:00:02]} Nf6 {[%clk
00:15:09]} {[%emt 00:00:06]} 4. Bb2 {[%clk 00:15:12]} {[%emt 00:00:07]} e6
{[%clk 00:15:07]} {[%emt 00:00:07]} 5. e3 {[%clk 00:15:15]} {[%emt 00:00:02]}
Bd6 {[%clk 00:15:08]} {[%emt 00:00:03]} 6. Be2 {[%clk 00:14:59]} {[%emt
00:00:19]} Nbd7 {[%clk 00:15:01]} {[%emt 00:00:15]} 7. cxd5 {[%clk 00:14:39]}
{[%emt 00:00:25]} exd5 {[%clk 00:14:42]} {[%emt 00:00:24]} 8. Qc2 {[%clk
00:14:14]} {[%emt 00:00:29]} O-O {[%clk 00:14:09]} {[%emt 00:00:37]} 9. O-O
{[%clk 00:12:32]} {[%emt 00:01:48]} Qe7 {[%clk 00:13:51]} {[%emt 00:00:24]} 10.
Nc3 {[%clk 00:10:39]} {[%emt 00:01:58]} Ne5 {[%clk 00:13:39]} {[%emt 00:00:17]}
11. Nxe5 {[%clk 00:10:23]} {[%emt 00:00:21]} Qxe5 {[%clk 00:13:27]} {[%emt
00:00:16]} 12. f4 {[%clk 00:10:24]} {[%emt 00:00:04]} Qe7 {[%clk 00:13:20]}
{[%emt 00:00:11]} 13. Bd3 {[%clk 00:09:42]} {[%emt 00:00:49]} h6 {[%clk
00:12:59]} {[%emt 00:00:26]} 14. Rae1 {[%clk 00:08:32]} {[%emt 00:01:15]} Qd8
{[%clk 00:12:28]} {[%emt 00:00:35]} 15. Bf5 {[%clk 00:07:23]} {[%emt 00:01:15]}
Re8 {[%clk 00:10:50]} {[%emt 00:01:44]} 16. Ne2 {[%clk 00:06:19]} {[%emt
00:01:09]} Ne4 {[%clk 00:09:19]} {[%emt 00:01:36]} 17. Bxc8 {[%clk 00:04:48]}
{[%emt 00:01:36]} Rxc8 {[%clk 00:09:23]} {[%emt 00:00:01]} 18. d3 {[%clk
00:04:40]} {[%emt 00:00:13]} Nf6 {[%clk 00:09:18]} {[%emt 00:00:10]} 19. Nd4
{[%clk 00:03:40]} {[%emt 00:01:05]} Bf8 {[%clk 00:08:59]} {[%emt 00:00:23]} 20.
Rf3 {[%clk 00:03:09]} {[%emt 00:00:37]} c5 {[%clk 00:08:26]} {[%emt 00:00:38]}
21. Nf5 {[%clk 00:03:01]} {[%emt 00:00:13]} g6 {[%clk 00:08:10]} {[%emt
00:00:21]} 22. Rg3 {[%clk 00:01:48]} {[%emt 00:01:19]} Kh7 {[%clk 00:08:07]}
{[%emt 00:00:07]} 23. Nh4 {[%clk 00:00:58]} {[%emt 00:00:54]} Nh5 {[%clk
00:07:54]} {[%emt 00:00:18]} 24. Rg4 {[%clk 00:00:17]} {[%emt 00:00:46]} f5
{[%clk 00:07:08]} {[%emt 00:00:51]} 25. Rxg6 {[%clk 00:00:21]} {[%emt
00:00:02]} Qxh4 {[%clk 00:07:08]} {[%emt 00:00:05]} 26. Qc3 {[%clk 00:00:14]}
{[%emt 00:00:12]} Kxg6 {[%clk 00:07:05]} {[%emt 00:00:08]} 27. g3 {[%clk
00:00:14]} {[%emt 00:00:05]} Qf6 {[%clk 00:06:55]} {[%emt 00:00:15]} 28. Qc2
{[%clk 00:00:17]} {[%emt 00:00:03]} Qb6 {[%clk 00:06:52]} {[%emt 00:00:08]} 29.
h3 {[%clk 00:00:15]} {[%emt 00:00:07]} c4 {[%clk 00:05:55]} {[%emt 00:01:02]}
30. bxc4 {[%clk 00:00:15]} {[%emt 00:00:05]} Rxe3 {[%clk 00:05:52]} {[%emt
00:00:08]} 0-1

[Event "Kvibergspelen 2018"]
[Site "Prioritet Serneke Arena, Krutvagen 2, Gothenburg, Sweden"]
[Date "2018.04.21"]
[Round "3.10"]
[White "Naslund, Mikael"]
[Black "Svorono, Gabriel"]
[Result "1/2-1/2"]
[TimeControl "15 minutes + 5 seconds per move from move one (Round 1 - 4) / 90 minutes + 30 seconds per move from move one (Round 5 - 8)"]
[WhiteTitle "FM"]
[WhiteFideId "1708260"]
[BlackFideId "1715623"]
[WhiteElo "2224"]
[BlackElo "2089"]

1. d4 {[%clk 00:15:05]} {[%emt 00:02:49]} d5 {[%clk 00:15:05]} {[%emt
00:00:03]} 2. c4 {[%clk 00:15:05]} {[%emt 00:00:03]} c6 {[%clk 00:15:05]}
{[%emt 00:00:01]} 3. Nf3 {[%clk 00:15:06]} {[%emt 00:00:12]} Nf6 {[%clk
00:15:07]} {[%emt 00:00:03]} 4. Nc3 {[%clk 00:15:06]} {[%emt 00:00:06]} dxc4
{[%clk 00:15:08]} {[%emt 00:00:04]} 5. a4 {[%clk 00:15:05]} {[%emt 00:00:06]}
Bf5 {[%clk 00:15:08]} {[%emt 00:00:03]} 6. Nh4 {[%clk 00:14:58]} {[%emt
00:00:13]} Bc8 {[%clk 00:14:32]} {[%emt 00:00:41]} 7. e3 {[%clk 00:14:19]}
{[%emt 00:00:43]} e5 {[%clk 00:14:16]} {[%emt 00:00:22]} 8. Bxc4 {[%clk
00:14:14]} {[%emt 00:00:11]} exd4 {[%clk 00:13:24]} {[%emt 00:00:58]} 9. exd4
{[%clk 00:14:12]} {[%emt 00:00:07]} Be7 {[%clk 00:13:23]} {[%emt 00:00:05]} 10.
Nf3 {[%clk 00:13:51]} {[%emt 00:00:27]} O-O {[%clk 00:13:21]} {[%emt 00:00:07]}
11. O-O {[%clk 00:13:32]} {[%emt 00:00:24]} a5 {[%clk 00:13:13]} {[%emt
00:00:12]} 12. Re1 {[%clk 00:13:23]} {[%emt 00:00:15]} Bg4 {[%clk 00:12:50]}
{[%emt 00:00:28]} 13. d5 {[%clk 00:11:19]} {[%emt 00:02:09]} Bb4 {[%clk
00:11:54]} {[%emt 00:01:01]} 14. h3 {[%clk 00:09:51]} {[%emt 00:01:33]} Bh5
{[%clk 00:11:53]} {[%emt 00:00:05]} 15. g4 {[%clk 00:08:48]} {[%emt 00:01:09]}
cxd5 {[%clk 00:11:01]} {[%emt 00:00:56]} 16. Bb3 {[%clk 00:06:52]} {[%emt
00:02:02]} Bg6 {[%clk 00:10:59]} {[%emt 00:00:08]} 17. Bg5 {[%clk 00:05:00]}
{[%emt 00:01:57]} Qd6 {[%clk 00:10:07]} {[%emt 00:00:55]} 18. Bxf6 {[%clk
00:04:12]} {[%emt 00:00:54]} Qxf6 {[%clk 00:10:08]} {[%emt 00:00:05]} 19. Nxd5
{[%clk 00:03:56]} {[%emt 00:00:21]} Qd6 {[%clk 00:10:06]} {[%emt 00:00:05]} 20.
Ne7+ {[%clk 00:03:29]} {[%emt 00:00:33]} Kh8 {[%clk 00:10:03]} {[%emt
00:00:08]} 21. Qxd6 {[%clk 00:03:02]} {[%emt 00:00:32]} Bxd6 {[%clk 00:10:03]}
{[%emt 00:00:05]} 22. Ng5 {[%clk 00:02:50]} {[%emt 00:00:16]} Bxe7 {[%clk
00:07:15]} {[%emt 00:02:54]} 23. Rxe7 {[%clk 00:02:54]} {[%emt 00:00:02]} Nc6
{[%clk 00:06:32]} {[%emt 00:00:47]} 24. Nxf7 {[%clk 00:02:43]} {[%emt
00:00:16]} Bxf7 {[%clk 00:06:24]} {[%emt 00:00:12]} 25. Rxf7 {[%clk 00:02:46]}
{[%emt 00:00:03]} Ne5 {[%clk 00:05:32]} {[%emt 00:00:57]} 26. Rxf8 {[%clk
00:02:40]} {[%emt 00:00:11]} Rxf8 {[%clk 00:05:31]} {[%emt 00:00:06]} 27. Bd5
{[%clk 00:02:34]} {[%emt 00:00:11]} b6 {[%clk 00:05:15]} {[%emt 00:00:21]} 28.
Kg2 {[%clk 00:01:22]} {[%emt 00:01:17]} Nd3 {[%clk 00:05:09]} {[%emt 00:00:11]}
29. Bf3 {[%clk 00:00:48]} {[%emt 00:00:40]} Nxb2 {[%clk 00:04:19]} {[%emt
00:00:55]} 30. Be2 {[%clk 00:00:51]} {[%emt 00:00:01]} Rf4 {[%clk 00:04:13]}
{[%emt 00:00:12]} 31. Bb5 {[%clk 00:00:34]} {[%emt 00:00:22]} g5 {[%clk
00:03:32]} {[%emt 00:00:46]} 32. Rb1 {[%clk 00:00:29]} {[%emt 00:00:10]} Nxa4
33. Bxa4 {[%clk 00:00:32]} Rxa4 {[%clk 00:03:27]} {[%emt 00:00:03]} 34. Rxb6
{[%clk 00:00:36]} 1/2-1/2

[Event "Kvibergspelen 2018"]
[Site "Prioritet Serneke Arena, Krutvagen 2, Gothenburg, Sweden"]
[Date "2018.04.21"]
[Round "3.11"]
[White "Jonsson, Krister"]
[Black "Nilsson, Anders"]
[Result "0-1"]
[TimeControl "15 minutes + 5 seconds per move from move one (Round 1 - 4) / 90 minutes + 30 seconds per move from move one (Round 5 - 8)"]
[BlackTitle "CM"]
[WhiteFideId "1708023"]
[BlackFideId "1705423"]
[WhiteElo "2047"]
[BlackElo "2217"]

1. d4 {[%clk 00:15:07]} {[%emt 00:00:03]} Nf6 {[%clk 00:15:10]} 2. c4 {[%clk
00:15:10]} {[%emt 00:00:02]} Nc6 {[%clk 00:15:14]} 3. Nf3 {[%clk 00:15:06]}
{[%emt 00:00:08]} e6 {[%clk 00:15:17]} {[%emt 00:00:03]} 4. g3 {[%clk
00:14:05]} {[%emt 00:01:06]} Bb4+ {[%clk 00:15:20]} {[%emt 00:00:02]} 5. Nbd2
{[%clk 00:13:59]} {[%emt 00:00:10]} d5 {[%clk 00:14:56]} {[%emt 00:00:30]} 6.
cxd5 {[%clk 00:13:24]} {[%emt 00:00:40]} exd5 {[%clk 00:14:58]} {[%emt
00:00:02]} 7. Bg2 {[%clk 00:13:26]} {[%emt 00:00:03]} O-O {[%clk 00:14:58]}
{[%emt 00:00:06]} 8. O-O {[%clk 00:13:28]} {[%emt 00:00:02]} Re8 {[%clk
00:14:54]} {[%emt 00:00:10]} 9. a3 {[%clk 00:13:09]} {[%emt 00:00:24]} Bd6
{[%clk 00:14:12]} {[%emt 00:00:47]} 10. b4 {[%clk 00:12:56]} {[%emt 00:00:18]}
Bg4 {[%clk 00:13:52]} {[%emt 00:00:25]} 11. Bb2 {[%clk 00:12:40]} {[%emt
00:00:21]} Qd7 {[%clk 00:13:31]} {[%emt 00:00:26]} 12. Nb3 {[%clk 00:11:47]}
{[%emt 00:00:57]} b6 {[%clk 00:13:32]} {[%emt 00:00:05]} 13. b5 {[%clk
00:11:16]} {[%emt 00:00:36]} Ne7 {[%clk 00:13:06]} {[%emt 00:00:30]} 14. a4
{[%clk 00:11:17]} {[%emt 00:00:04]} a6 {[%clk 00:12:56]} {[%emt 00:00:15]} 15.
Ne5 {[%clk 00:11:04]} {[%emt 00:00:17]} Qe6 {[%clk 00:12:16]} {[%emt 00:00:45]}
16. Nxg4 {[%clk 00:10:36]} {[%emt 00:00:33]} Nxg4 {[%clk 00:11:46]} {[%emt
00:00:35]} 17. Qd3 {[%clk 00:10:31]} {[%emt 00:00:10]} Nf5 {[%clk 00:10:56]}
{[%emt 00:00:56]} 18. bxa6 {[%clk 00:09:24]} {[%emt 00:01:11]} h5 {[%clk
00:10:36]} {[%emt 00:00:24]} 19. e3 {[%clk 00:08:18]} {[%emt 00:01:12]} h4
{[%clk 00:10:13]} {[%emt 00:00:28]} 20. a5 {[%clk 00:07:54]} {[%emt 00:00:29]}
hxg3 {[%clk 00:10:13]} {[%emt 00:00:05]} 21. hxg3 {[%clk 00:07:58]} {[%emt
00:00:01]} Qh6 {[%clk 00:10:06]} {[%emt 00:00:13]} 22. Rfe1 {[%clk 00:07:08]}
{[%emt 00:00:54]} Qh2+ {[%clk 00:09:31]} {[%emt 00:00:40]} 23. Kf1 {[%clk
00:07:12]} {[%emt 00:00:01]} Nxg3+ {[%clk 00:08:02]} {[%emt 00:01:34]} 24. fxg3
{[%clk 00:07:12]} {[%emt 00:00:05]} Qxg3 {[%clk 00:08:04]} {[%emt 00:00:03]} 25.
Re2 {[%clk 00:04:11]} {[%emt 00:03:06]} Rxe3 {[%clk 00:07:01]} {[%emt
00:01:09]} 0-1

[Event "Kvibergspelen 2018"]
[Site "Prioritet Serneke Arena, Krutvagen 2, Gothenburg, Sweden"]
[Date "2018.04.21"]
[Round "3.12"]
[White "Johansson, Gunnar"]
[Black "Moller, Mikael"]
[Result "1-0"]
[TimeControl "15 minutes + 5 seconds per move from move one (Round 1 - 4) / 90 minutes + 30 seconds per move from move one (Round 5 - 8)"]
[WhiteFideId "1703501"]
[BlackFideId "1738461"]
[WhiteElo "2212"]
[BlackElo "1962"]

1. d4 {[%clk 00:15:07]} {[%emt 00:00:02]} f5 {[%clk 00:15:09]} {[%emt
00:00:02]} 2. c4 {[%clk 00:15:04]} {[%emt 00:00:07]} e6 {[%clk 00:15:12]}
{[%emt 00:00:02]} 3. g3 {[%clk 00:15:06]} {[%emt 00:00:03]} Nf6 {[%clk
00:15:16]} {[%emt 00:00:01]} 4. Bg2 {[%clk 00:15:09]} {[%emt 00:00:02]} Be7
{[%clk 00:15:19]} {[%emt 00:00:02]} 5. Nf3 {[%clk 00:15:11]} {[%emt 00:00:03]}
d6 {[%clk 00:15:19]} {[%emt 00:00:05]} 6. O-O {[%clk 00:15:12]} {[%emt
00:00:04]} O-O {[%clk 00:15:21]} {[%emt 00:00:03]} 7. b3 {[%clk 00:15:16]}
{[%emt 00:00:02]} Qe8 {[%clk 00:15:19]} {[%emt 00:00:07]} 8. Nc3 {[%clk
00:15:17]} {[%emt 00:00:04]} Nbd7 {[%clk 00:14:53]} {[%emt 00:00:31]} 9. e3
{[%clk 00:14:24]} {[%emt 00:00:57]} Kh8 {[%clk 00:14:31]} {[%emt 00:00:27]} 10.
Re1 {[%clk 00:14:08]} {[%emt 00:00:21]} Qg6 {[%clk 00:14:23]} {[%emt 00:00:13]}
11. Ba3 {[%clk 00:12:53]} {[%emt 00:01:20]} c6 {[%clk 00:13:49]} {[%emt
00:00:39]} 12. e4 {[%clk 00:12:27]} {[%emt 00:00:30]} fxe4 {[%clk 00:13:44]}
{[%emt 00:00:10]} 13. Nxe4 {[%clk 00:11:54]} {[%emt 00:00:38]} Nxe4 {[%clk
00:13:46]} {[%emt 00:00:03]} 14. Rxe4 {[%clk 00:11:58]} {[%emt 00:00:02]} e5
{[%clk 00:13:18]} {[%emt 00:00:33]} 15. Nxe5 {[%clk 00:10:50]} {[%emt
00:01:12]} Nxe5 {[%clk 00:11:16]} {[%emt 00:02:07]} 16. dxe5 {[%clk 00:10:49]}
{[%emt 00:00:06]} Qf7 {[%clk 00:10:16]} {[%emt 00:01:05]} 17. Rf4 {[%clk
00:08:28]} {[%emt 00:02:27]} Qg6 {[%clk 00:09:28]} {[%emt 00:00:54]} 18. exd6
{[%clk 00:06:25]} {[%emt 00:02:08]} Rxf4 {[%clk 00:09:12]} {[%emt 00:00:21]} 19.
dxe7 {[%clk 00:06:25]} {[%emt 00:00:05]} 1-0